Cogmind - Beta 16.1 @@@ ROGUE MODE // 2026.03.21 @ 18:26:14 Player: APerTAS Result: Destroyed by Y-45 Defender with Heavy Assault Rifle Performance ------------- Evolutions (1) 500 Regions Visited (2) 400 Robots Destroyed (3) 15 Value Destroyed (90) 90 Prototype IDs (1) 20 Alien Tech Used (0) 0 Bonus (200) 200 TOTAL SCORE: 1225 Bonus ------- Pacifist 200 Cogmind --------- Core Integrity 0/400 Matter 143/300 Energy 26/100 System Corruption 0% Temperature Cool (9) Movement Core (50) Location -9/Materials Parts ------- > --- POWER (1) -------- (None) > --- PROPULSION (4) --- (None) > --- UTILITY (2) ------ (None) > --- WEAPON (2) ------- (None) > --- INVENTORY (5) ---- Advanced Treads Peak State ------------ > --- POWER ------------ (None) > --- PROPULSION ------- Advanced Treads Advanced Treads Advanced Treads > --- UTILITY ---------- (None) > --- WEAPON ----------- Heavy Particle Gun > --- INVENTORY -------- (None) [Rating: 13] Favorites ----------- Power None Propulsion Advanced Treads Treads Advanced Treads Utility None Weapon Heavy Particle Gun Energy Gun Heavy Particle Gun Build | -11 -10 -9 ------- Run | Yrd Mat Mat Slots Evolved 2 | . . 2 Power . | . . . Propulsion 2 | . . 2 Utility . | . . . Weapon . | . . . Parts Attached 4 | . . 4 Power . | . . . Engine . | . . . Core . | . . . Reactor . | . . . Propulsion 3 | . . 3 Treads 3 | . . 3 Leg . | . . . Wheel . | . . . Hover . | . . . Flight . | . . . Utility . | . . . Device . | . . . Storage . | . . . Processor . | . . . Hackware . | . . . Protection . | . . . Artifact . | . . . Weapon 1 | . . 1 Energy Gun 1 | . . 1 Energy Cannon . | . . . Ballistic Gun . | . . . Ballistic Cannon . | . . . Launcher . | . . . Special Weapon . | . . . Impact Weapon . | . . . Slashing Weapon . | . . . Piercing Weapon . | . . . Special Melee Weapon . | . . . Unidentified Prototypes 1 | . . 1 Parts Lost 1 | . . 1 Power . | . . . Propulsion 1 | . . 1 Utility . | . . . Weapon . | . . . Highest Loss Streak 1 | . . 1 To Critical Strikes . | . . . Average Backups . | . . . Power . | . . . Propulsion . | . . . Utility . | . . . Weapon . | . . . Tool/Special . | . . . Unused Backups . | . . . Power . | . . . Propulsion . | . . . Utility . | . . . Weapon . | . . . Tool/Special . | . . . Average Slot Usage (%) 5 | . . 8 Treads 3 | . . 6 Energy Gun 1 | . . 2 Peak Build Rating 13 | . . 13 Average Rating 1 | . . 2 On Entrance . | . . . Avg Prop Armor Cover (%) . | . . . Naked Turns 107 | . 49 58 Heaviest Build . | . . . Greatest Support 66 | 3 3 66 Greatest Overweight (x) . | . . . Average Overweight (x) . | . . . Largest Inventory Capacity 5 | 5 5 5 Average Capacity 5 | 5 5 5 Most Carried 1 | . . 1 Average Carried . | . . . Final Capacity 5 | 5 5 5 Final Carried 1 | . . 1 Class Distribution -------------------- 100% | Mutant Dominant Class ---------------- Mutant | -10/Materials Mutant | -9/Materials Resources | -11 -10 -9 ----------- Run | Yrd Mat Mat Matter Collected 51 | 51 . . Remotely . | . . . Salvage Created 46 | . . 46 Parts 5 | . . 5 Haulers Intercepted . | . . . Recyclers Shooed . | . . . Parts Field Recycled . | . . . Retrieved Matter . | . . . Parts Self-Destructed . | . . . Prevented . | . . . Parts Restored . | . . . Kills | -11 -10 -9 ------- Run | Yrd Mat Mat Combat Hostiles Destroyed 3 | . . 3 Guns 3 | . . 3 Classes Destroyed 1 | . . 1 Swarmer 3 | . . 3 Best Kill Streak 3 | . . 3 Combat Bots Only 3 | . . 3 Max Kills in Single Turn 1 | . . 1 Gunslinging . | . . . Exploded . | . . . Melee . | . . . Uniques/NPCs Destroyed . | . . . Combat | -11 -10 -9 -------- Run | Yrd Mat Mat Hostile Shots Fired 178 | . 7 171 Missed 69 | . 4 65 Hits 109 | . 3 106 Projectile 109 | . 3 106 Critical Strikes 1 | . . 1 Damage Taken 972 | 1 43 928 Core 457 | 1 43 413 Absorbed by Shields . | . . . Core Remaining (%) 90 | 99 82 . Volleys Fired 6 | . . 6 Largest 1 | . . 1 Hottest 55 | . . 55 Shots Fired 6 | . . 6 Gun 6 | . . 6 Cannon . | . . . Launcher . | . . . Special . | . . . Kinetic . | . . . Thermal 6 | . . 6 Explosive . | . . . Electromagnetic . | . . . Robot Hit Streak 1 | . . 1 Robot Miss Streak 3 | . . 3 Penetration Max . | . . . Secondary Targets . | . . . Shots Hit Robots 2 | . . 2 Core Hits 3 | . . 3 Critical Kills . | . . . Critical Parts Destroyed . | . . . Critical Strikes . | . . . Melee Attacks . | . . . Impact . | . . . Slashing . | . . . Piercing . | . . . Sneak Attacks . | . . . Combat Hostiles . | . . . Follow-up Attacks . | . . . Damage Inflicted 111 | 2 25 84 Guns 73 | . . 73 Cannons . | . . . Explosions . | . . . Melee . | . . . Ramming 38 | 2 25 11 Kinetic . | . . . Thermal 73 | . . 73 Explosive . | . . . Electromagnetic . | . . . Impact . | . . . Slashing . | . . . Piercing . | . . . Highest Corruption . | . . . Average Corruption . | . . . Corruption Purged . | . . . Corruption Blocked . | . . . Overload Shots . | . . . Overflow Damage . | . . . Projectiles . | . . . Explosions . | . . . Melee . | . . . Knockbacks . | . . . Impact . | . . . Kinetic . | . . . Secondary . | . . . Self-Inflicted Damage 18 | 1 12 5 Shots . | . . . Rammed 9 | 1 5 3 Targets Rammed 9 | 1 5 3 Kicked . | . . . Crushed . | . . . Highest Temperature 38 | . . 38 Average Temperature 22 | . . 22 Received Heat Transfer 99 | . 18 81 Siege Activations . | . . . Martial Activations . | . . . Shielding Activations . | . . . Robots Disrupted . | . . . Combat Hostiles . | . . . Robots Corrupted . | . . . Combat Hostiles . | . . . Parts Fried . | . . . Impact Corruptions . | . . . Robots Melted . | . . . Combat Hostiles . | . . . Parts Melted . | . . . Heat Transferred 148 | . . 148 Parts Sabotaged . | . . . Parts Stolen . | . . . Parts Stripped . | . . . Power Chain Reactions . | . . . Alert | -11 -10 -9 ------- Run | Yrd Mat Mat Maximum Alert Level . | . . . Low Security (%) 100 | 100 100 100 Level 1 . | . . . Level 2 . | . . . Level 3 . | . . . Level 4 . | . . . Level 5 . | . . . High Security . | . . . Max Security . | . . . Peak Influence 135 | . 50 135 Initial 12 | . . 12 Average 27 | . 23 32 Influence Increases 215 | . 50 165 Destroy 0b10 Robot/C 60 | . . 60 Select Force Hacks 50 | . 50 . Lose Combat Pursuer 105 | . . 105 Influence Decreases 80 | . 20 60 Entered New Map 18 | . . 18 Time Decay 52 | . 20 32 Lost Part 10 | . . 10 Squads Dispatched 4 | . 2 2 Investigation 2 | . 2 . Extermination . | . . . Reinforcement 2 | . . 2 Assault . | . . . Garrison . | . . . Intercept . | . . . Searches Triggered . | . . . Construction Impeded . | . . . Haulers Reinforced . | . . . Active Scanning Responses . | . . . Cargo Convoy Interrupts . | . . . Stealth | -11 -10 -9 --------- Run | Yrd Mat Mat Distress Signals 2 | . . 2 Communications Jammed . | . . . Distress Signals . | . . . Times Spotted 25 | . 5 20 Peak Tracking Total 20 | . 4 20 Tactical Retreats 2 | . . 2 Traps | -11 -10 -9 ------- Run | Yrd Mat Mat Traps Triggered . | . . . Indirectly . | . . . Trap Hack Attempts . | . . . Triggered . | . . . Disarmed . | . . . Reprogrammed . | . . . Reused . | . . . Traps Extracted . | . . . Installed . | . . . Triggered . | . . . Machines | -11 -10 -9 ---------- Run | Yrd Mat Mat Machines Disabled . | . . . Max in Single Turn . | . . . Machines Repaired . | . . . Machines Dismantled . | . . . Machines Sabotaged 1 | . 1 . Overloaded Fab Kills . | . . . Hacking | -11 -10 -9 --------- Run | Yrd Mat Mat Machines Accessed 2 | . 2 . Terminals 2 | . 2 . Fabricators . | . . . Repair Stations . | . . . Recycling Units . | . . . Scanalyzers . | . . . Garrison Access . | . . . Total Hacks 2 | . 2 . Successful 2 | . 2 . Failed . | . . . Catastrophic . | . . . Database Lockouts . | . . . Manual 3 | . 3 . Terminals 2 | . 2 . Fabricators . | . . . Repair Stations . | . . . Recycling Units . | . . . Scanalyzers . | . . . Garrison Access . | . . . Terminal Hacks . | . . . Fabricator Hacks . | . . . Repair Station Hacks . | . . . Recycling Unit Hacks . | . . . Scanalyzer . | . . . Garrison Access Hacks . | . . . Unauthorized Hacks 2 | . 2 . Terminals 2 | . 2 . Sabotage 2 | . 2 . Fabricators . | . . . Repair Stations . | . . . Recycling Units . | . . . Scanalyzers . | . . . Garrison Access . | . . . Data Cores Recovered . | . . . Used . | . . . Hacking Detections . | . . . Full Trace Events . | . . . Feedback Events . | . . . Feedback Blocked . | . . . Robot Schematics Acquired . | . . . Robots Built . | . . . Authchips . | . . . Time . | . . . Total Robot Build Rating . | . . . Part Schematics Acquired . | . . . Parts Built . | . . . Authchips . | . . . Time . | . . . Total Part Build Rating . | . . . Part Studies Acquired . | . . . Parts Repaired . | . . . Time . | . . . Parts Recycled . | . . . Recycled Matter . | . . . Retrieved Matter . | . . . Retrieved Components . | . . . Parts Scanalyzed . | . . . Part Schematics Acquired . | . . . Parts Damaged . | . . . Bothacking | -11 -10 -9 ------------ Run | Yrd Mat Mat Used RIF Installer . | . . . Robots Hacked . | . . . Non-combat . | . . . Combat . | . . . Robot Hacks Applied . | . . . Relay Couplers Released . | . . . Fabnet Peak Effective % . | . . . Robots Rewired . | . . . Allies Hacked . | . . . Hacks Repelled . | . . . Allies | -11 -10 -9 -------- Run | Yrd Mat Mat Total Allies . | . . . Largest Group . | . . . Highest-Rated Group . | . . . Highest-Rated Ally . | . . . Total Orders . | . . . Ally Attacks . | . . . Total Damage . | . . . Kills . | . . . Allies Corrupted . | . . . Allies Melted . | . . . Intel | -11 -10 -9 ------- Run | Yrd Mat Mat Active Infowar (turns) . | . . . Robot Analysis Total . | . . . Derelict Logs Recovered . | . . . Drone Launches . | . . . Drone Recoveries . | . . . Exploration | -11 -10 -9 ------------- Run | Yrd Mat Mat Turns Passed 141 | 10 49 82 Spaces Moved 218 | 17 88 113 Core 214 | 17 88 109 Treads 4 | . . 4 Legs . | . . . Wheels . | . . . Hover . | . . . Flight . | . . . Fastest Speed 50 | 50 50 50 Average Speed 51 | 50 50 53 Slowest Speed 145 | 50 50 145 Overloaded Moves . | . . . Propulsion Burnouts . | . . . Robots Hopped . | . . . Potential Cave-ins . | . . . Cave-ins Triggered . | . . . Exploration Rate (%) 19 | 3 32 23 Regions Visited 2 Branch Regions . Pre-discovered Areas . | . . . Known Exits Taken . | . . . Unknown Exits Taken 2 | 1 1 . Scrap Searched . | . . . Spaces Dug . | . . . Terrain Destroyed . | . . . Melee . | . . . Projectile . | . . . AOE . | . . . Terrain Rammed . | . . . Walls Destroyed . | . . . Machines Disabled . | . . . Actions | -11 -10 -9 --------- Run | Yrd Mat Mat Total 236 | 17 92 127 Wait . | . . . Move 217 | 16 88 113 Hop . | . . . Pick Up . | . . . Fast Attach 4 | . . 4 Attach . | . . . Detach 1 | . . 1 Swap . | . . . Drop . | . . . Fire 6 | . . 6 Melee . | . . . Ram 8 | 1 4 3 Kick . | . . . Crush . | . . . Escape Stasis . | . . . Rewire . | . . . Trap . | . . . Miscellaneous . | . . . Route ------- -11/Scrapyard -10/Materials -9/Materials (discovered 1 exit: [*Min]) History --------- Turn | Location | Event 3 | -11/Scrapyard | Discovered new exit (range 15) 11 | -11/Scrapyard | Entered Materials 52 | -10/Materials | Discovered new exit (range 16) 60 | -10/Materials | Entered another Materials area 60 | -9/Materials | Evolved 2 slots: Propulsion x2 116 | -9/Materials | Core integrity fell below 50% 131 | -9/Materials | Core integrity fell below 20% 140 | -9/Materials | Released all parts (2) 142 | -9/Materials | Discovered new exit (range 13) 142 | -9/Materials | Destroyed by Y-45 Defender with Heavy Assault Rifle Last Messages --------------- 00120_ S-10 Pest destroyed. 00123_ Acquired Adv. Treads. 00124_ ALERT: Hostiles spotted, dispatching reinforcements to Terminal M009. 00126_ Acquired Prototype Energy Gun. 00126_ Identified Hvy. Particle Gun. 00127_ S-10 Pest destroyed. 00128_ R-06 Scavenger collects Flight Unit. 00131_ S-10 Pest destroyed. 00133_ R-06 Scavenger collects Flight Unit. 00133_ Adv. Treads destroyed. 00134_ Critical hit (Burn: +37). 00135_ S-10 Pest destroyed. 00136_ R-06 Scavenger collects Lgt. Ion Engine. 00137_ S-10 Pest destroyed. 00139_ R-06 Scavenger collects Flight Unit. 00140_ Released Hvy. Particle Gun. 00140_ Released Adv. Treads. 00140_ Slammed into S-10 Pest. 00142_ EXIT=FOUND Map ----- +----------------------------------------------------+ | | | | | | | | | | | | | | | | | | | | | | | | | | | ?????????????????????????????????????????????????? | | ?????????????????????????????????????????????????? | | ?????????????????????????????????????????????????? | | ?????????????????????????????????????????????????? | | ?????????????????????????????????????????????????? | | ?????????????????????????""??????????????????????? | | ?????????????????????????""??????????????????????? | | ?????????????????#??????? ??????????+#??????????? | | ?????????????#####T#######+######## ?????????? | | ????????????? [ ?????????? | | ??????????????